Cogmind - Beta 13 @@@ ROGUE MODE // 2024.04.05 @ 00:29:17 Player: Demo Result: Destroyed by DAS Turret with DAS Cannon Performance ------------- Evolutions (1) 500 Regions Visited (4) 800 Robots Destroyed (40) 200 Value Destroyed (918) 918 Prototype IDs (7) 140 Alien Tech Used (0) 0 Bonus (-186) -186 TOTAL SCORE: 2372 Bonus ------- High Alert Combat Kills 26 Friendly Fire -212 Cogmind --------- Core Integrity 0/400 Matter 286/300 Energy 23/100 System Corruption 0% Temperature Cool (0) Movement Core (50) Location -9/Exiles Parts ------- > --- POWER (1) -------- (None) > --- PROPULSION (4) --- (None) > --- UTILITY (2) ------ (None) > --- WEAPON (2) ------- Katana > --- INVENTORY (5) ---- Wheel 8R-AWN's Boregun Peak State ------------ > --- POWER ------------ Reinforced Fission Core > --- PROPULSION ------- Advanced Myomer Leg Advanced Myomer Leg Wheel Wheel > --- UTILITY ---------- Light Armor Plating Thief Drone Bay > --- WEAPON ----------- 8R-AWN's Boregun Katana > --- INVENTORY -------- Flight Unit VTOL Module Medium Storage Unit 8R-AWN's Boregun [Rating: 46] Favorites ----------- Power Improved Ion Engine Engine Improved Ion Engine Power Core Reinforced Fission Core Propulsion Light Treads Treads Light Treads Leg Advanced Myomer Leg Wheel Wheel Flight Unit Flight Unit Utility Small Storage Unit Device Seismic Detector Storage Small Storage Unit Protection Light Armor Plating Weapon Beam Rifle Energy Gun Beam Rifle Ballistic Gun Heavy Assault Rifle Launcher Grenade Launcher Slashing Weapon Katana Build | -11 -10 -9 -9 -9 ------- Run | Yrd Mat Mat Min Exi Slots Evolved 2 | . . 2 . . Power . | . . . . . Propulsion 2 | . . 2 . . Utility . | . . . . . Weapon . | . . . . . Parts Attached 70 | 7 3 12 17 31 Power 6 | 1 . 1 1 3 Engine 4 | 1 . 1 1 1 Core 2 | . . . . 2 Reactor . | . . . . . Propulsion 20 | 2 1 5 2 10 Treads 6 | 1 . 3 . 2 Leg 5 | . . . . 5 Wheel 6 | 1 1 1 2 1 Hover . | . . . . . Flight 3 | . . 1 . 2 Utility 20 | 2 . . 6 12 Device 11 | 1 . . 3 7 Storage 4 | 1 . . . 3 Processor . | . . . . . Hackware . | . . . . . Protection 5 | . . . 3 2 Artifact . | . . . . . Weapon 24 | 2 2 6 8 6 Energy Gun 3 | 1 . 2 . . Energy Cannon . | . . . . . Ballistic Gun 12 | 1 2 3 4 2 Ballistic Cannon . | . . . . . Launcher 7 | . . 1 4 2 Special Weapon . | . . . . . Impact Weapon . | . . . . . Slashing Weapon 2 | . . . . 2 Piercing Weapon . | . . . . . Special Melee Weapon . | . . . . . Unidentified Prototypes 7 | . . . 2 5 Parts Lost 16 | . 1 5 2 8 Power 2 | . . 1 . 1 Propulsion 9 | . 1 3 1 4 Utility 3 | . . 1 1 1 Weapon 2 | . . . . 2 Highest Loss Streak 4 | . 1 4 1 4 To Critical Strikes 1 | . . . . 1 Average Slot Usage (%) 93 | . 100 90 97 88 Engine 10 | . 14 10 11 9 Treads 18 | . 14 25 27 14 Leg 1 | . . . . 3 Wheel 14 | . 14 10 16 15 Flight 2 | . . 3 . 4 Device 6 | . 14 8 1 5 Storage 9 | . 14 11 11 5 Protection 4 | . . . 8 6 Energy Gun 8 | . 14 11 11 4 Ballistic Gun 10 | . 14 11 9 10 Slashing Weapon 2 | . . . . 5 Naked Turns . | . . . . . Heaviest Build 36 | 13 14 17 21 36 Greatest Support 40 | 16 16 16 40 20 Greatest Overweight (x) 2 | . . 2 2 2 Average Overweight (x) . | . . . 1 . Largest Inventory Capacity 10 | 8 8 8 8 10 Average Capacity 7 | 7 8 8 8 7 Most Carried 9 | 4 8 8 8 9 Average Carried 6 | 2 7 7 7 6 Final Capacity 8 | 8 8 8 8 5 Final Carried 8 | 4 8 8 8 2 Class Distribution -------------------- 59% | Scavenger-Mutant 40% | Mutant Dominant Class ---------------- Mutant | -10/Materials Mutant | -9/Materials Scavenger-Mutant | -9/Mines Scavenger-Mutant | -9/Exiles Resources | -11 -10 -9 -9 -9 ----------- Run | Yrd Mat Mat Min Exi Matter Collected 1430 | 266 162 200 303 499 Remotely . | . . . . . Salvage Created 1357 | 21 286 507 422 121 Parts 87 | 4 18 45 20 . Haulers Intercepted . | . . . . . Recyclers Shooed 3 | . . 2 1 . Parts Field Recycled . | . . . . . Retrieved Matter . | . . . . . Parts Self-Destructed . | . . . . . Prevented . | . . . . . Kills | -11 -10 -9 -9 -9 ------- Run | Yrd Mat Mat Min Exi Combat Hostiles Destroyed 34 | . 5 14 9 6 Melee 1 | . . . . 1 Guns 21 | . 5 11 5 . AOE 12 | . . 3 4 5 Classes Destroyed 10 | 1 2 5 1 1 Worker 2 | . . 2 . . Tunneler 3 | 1 1 . 1 . Recycler 2 | . . 1 1 . Operator 1 | . . 1 . . Watcher 3 | . 2 1 . . Swarmer 10 | . . 10 . . Grunt 13 | . 5 . 8 . Duelist 1 | . . . 1 . Sentry 4 | . . 4 . . Assembled 5 | . . . . 5 Best Kill Streak 9 | 1 5 9 4 5 Combat Bots Only 8 | . 5 8 3 5 Max Kills in Single Turn 4 | 1 1 4 2 2 Gunslinging . | . . . . . Exploded 3 | . . 3 2 2 Melee 1 | . . . . 1 Uniques/NPCs Destroyed 1 | . . . . 1 8R-AWN (-9/Exiles) Combat | -11 -10 -9 -9 -9 -------- Run | Yrd Mat Mat Min Exi Hostile Shots Fired 162 | . 26 69 28 39 Missed 40 | . 8 15 8 9 Damage Taken 2164 | . 226 552 282 1104 Core 442 | . 40 63 44 295 Absorbed by Shields . | . . . . . Core Remaining (%) 92 | 100 84 . . . Volleys Fired 123 | 2 24 35 26 36 Largest 2 | 2 2 2 2 2 Hottest 86 | 60 60 79 86 60 Shots Fired 208 | 4 48 68 51 37 Gun 198 | 4 48 67 45 34 Cannon . | . . . . . Launcher 10 | . . 1 6 3 Special . | . . . . . Kinetic 114 | 2 24 34 20 34 Thermal 84 | 2 24 33 25 . Explosive 10 | . . 1 6 3 Electromagnetic . | . . . . . Robot Hit Streak 14 | 4 12 14 10 2 Robot Miss Streak 4 | . 1 2 4 2 Penetration Max . | . . . . . Secondary Targets 3 | . . 3 . . Max Gunslinging Chain 1 | . . 1 . . Shots Hit Robots 147 | 4 36 47 33 27 Core Hits 78 | 2 18 24 20 14 Critical Kills . | . . . . . Critical Parts Destroyed 1 | . . 1 . . Critical Strikes 4 | . . 2 2 . Burn 3 | . . 1 2 . Destroy 1 | . . 1 . . Melee Attacks 35 | . . . . 35 Impact . | . . . . . Slashing 35 | . . . . 35 Piercing . | . . . . . Sneak Attacks 1 | . . . . 1 Combat Hostiles . | . . . . . Follow-up Attacks . | . . . . . Damage Inflicted 3101 | 36 363 768 752 1182 Guns 1470 | 36 363 599 428 44 Cannons . | . . . . . Explosions 817 | . . 169 324 324 Melee 814 | . . . . 814 Ramming . | . . . . . Kinetic 625 | 12 169 254 146 44 Thermal 845 | 24 194 345 282 . Explosive 817 | . . 169 324 324 Electromagnetic . | . . . . . Impact . | . . . . . Slashing 814 | . . . . 814 Piercing . | . . . . . Highest Corruption . | . . . . . Average Corruption . | . . . . . Corruption Purged . | . . . . . Corruption Blocked . | . . . . . Overload Shots . | . . . . . Overflow Damage 30 | . . 18 . 12 Projectiles . | . . . . . Explosions 30 | . . 18 . 12 Melee . | . . . . . Knockbacks . | . . . . . Impact . | . . . . . Kinetic . | . . . . . Secondary . | . . . . . Self-Inflicted Damage 82 | . . 6 8 68 Shots 5 | . . 1 1 3 Rammed . | . . . . . Targets Rammed . | . . . . . Kicked . | . . . . . Crushed . | . . . . . Highest Temperature 159 | 40 132 69 159 39 Average Temperature 51 | 24 43 27 76 23 Received Heat Transfer 460 | . 141 90 189 40 Siege Activations . | . . . . . Robots Corrupted . | . . . . . Combat Hostiles . | . . . . . Parts Fried . | . . . . . Impact Corruptions . | . . . . . Robots Melted . | . . . . . Combat Hostiles . | . . . . . Parts Melted 2 | . . 2 . . Heat Transferred 2230 | 50 425 904 851 . Parts Sabotaged . | . . . . . Parts Stolen . | . . . . . Parts Stripped . | . . . . . Power Chain Reactions . | . . . . . Alert | -11 -10 -9 -9 -9 ------- Run | Yrd Mat Mat Min Exi Peak Influence 480 | 5 140 480 384 . Initial 130 | . 3 59 130 . Average 178 | . 62 221 268 . Maximum Alert Level 2 | . . 2 1 . Low Security (%) 65 | 100 100 55 39 . Level 1 30 | . . 30 60 . Level 2 4 | . . 14 . . Level 3 . | . . . . . Level 4 . | . . . . . Level 5 . | . . . . . High Security . | . . . . . Max Security . | . . . . . Squads Dispatched 7 | . 3 4 . . Investigation 5 | . 3 2 . . Extermination . | . . . . . Reinforcement 2 | . . 2 . . Assault . | . . . . . Garrison . | . . . . . Intercept . | . . . . . Searches Triggered . | . . . . . Construction Impeded . | . . . . . Haulers Reinforced . | . . . . . Active Scanning Responses . | . . . . . Cargo Convoy Interrupts . | . . . . . Stealth | -11 -10 -9 -9 -9 --------- Run | Yrd Mat Mat Min Exi Distress Signals 1 | . . 1 . . Communications Jammed . | . . . . . Distress Signals . | . . . . . Times Spotted 89 | . 15 19 9 46 Peak Tracking Total 9 | . 4 9 3 9 Tactical Retreats 9 | . 2 2 . 5 Traps | -11 -10 -9 -9 -9 ------- Run | Yrd Mat Mat Min Exi Traps Triggered . | . . . . . Indirectly . | . . . . . Trap Hack Attempts . | . . . . . Triggered . | . . . . . Disarmed . | . . . . . Reprogrammed . | . . . . . Reused . | . . . . . Traps Extracted . | . . . . . Installed . | . . . . . Triggered . | . . . . . Machines | -11 -10 -9 -9 -9 ---------- Run | Yrd Mat Mat Min Exi Machines Disabled 8 | . . 1 . 7 Max in Single Turn 1 | . . 1 . 1 Machines Repaired . | . . . . . Machines Dismantled . | . . . . . Machines Sabotaged . | . . . . . Overloaded Fab Kills . | . . . . . Hacking | -11 -10 -9 -9 -9 --------- Run | Yrd Mat Mat Min Exi Machines Accessed 9 | . 4 4 1 . Terminals 7 | . 4 3 . . Fabricators . | . . . . . Repair Stations . | . . . . . Recycling Units . | . . . . . Scanalyzers 1 | . . 1 . . Garrison Access . | . . . . . Total Hacks 31 | . 15 15 1 . Successful 13 | . 3 9 1 . Failed 17 | . 11 6 . . Catastrophic 3 | . 3 . . . Database Lockouts 1 | . 1 . . . Manual 24 | . 15 9 . . Terminals 24 | . 15 9 . . Fabricators . | . . . . . Repair Stations . | . . . . . Recycling Units . | . . . . . Scanalyzers 6 | . . 6 . . Garrison Access . | . . . . . Terminal Hacks 8 | . 3 4 1 . Part Schematic 3 | . 2 1 . . Robot Analysis 3 | . 1 2 . . Open Door 1 | . . . 1 . Terminal Index 1 | . . 1 . . Fabricator Hacks . | . . . . . Repair Station Hacks . | . . . . . Recycling Unit Hacks . | . . . . . Scanalyzer 4 | . . 4 . . Insert Component 2 | . . 2 . . Analyze 2 | . . 2 . . Garrison Access Hacks . | . . . . . Unauthorized Hacks 1 | . . 1 . . Terminals 1 | . . 1 . . Assimilate 1 | . . 1 . . Fabricators . | . . . . . Repair Stations . | . . . . . Recycling Units . | . . . . . Scanalyzers . | . . . . . Garrison Access . | . . . . . Data Cores Recovered . | . . . . . Used . | . . . . . Hacking Detections 8 | . 4 4 . . Full Trace Events 5 | . 3 2 . . Feedback Events . | . . . . . Feedback Blocked . | . . . . . Robot Schematics Acquired . | . . . . . Robots Built . | . . . . . Authchips . | . . . . . Time . | . . . . . Total Robot Build Rating . | . . . . . Part Schematics Acquired 5 | . 2 3 . . Parts Built . | . . . . . Authchips . | . . . . . Time . | . . . . . Total Part Build Rating . | . . . . . Parts Repaired . | . . . . . Time . | . . . . . Parts Recycled . | . . . . . Recycled Matter . | . . . . . Retrieved Matter . | . . . . . Retrieved Components . | . . . . . Parts Scanalyzed 2 | . . 2 . . Part Schematics Acquired 2 | . . 2 . . Parts Damaged . | . . . . . Bothacking | -11 -10 -9 -9 -9 ------------ Run | Yrd Mat Mat Min Exi Used RIF Installer . | . . . . . Robots Hacked . | . . . . . Non-combat . | . . . . . Combat . | . . . . . Robot Hacks Applied . | . . . . . Relay Couplers Released . | . . . . . Fabnet Peak Effective % . | . . . . . Robots Rewired . | . . . . . Allies Hacked . | . . . . . Hacks Repelled . | . . . . . Allies | -11 -10 -9 -9 -9 -------- Run | Yrd Mat Mat Min Exi Total Allies . | . . . . . Largest Group . | . . . . . Highest-Rated Group . | . . . . . Highest-Rated Ally . | . . . . . Total Orders 5 | . . . 1 4 RETURN 5 | . . . 1 4 Ally Attacks 97 | . . . . 97 Total Damage 548 | . . . . 548 Kills . | . . . . . Allies Corrupted . | . . . . . Allies Melted . | . . . . . Intel | -11 -10 -9 -9 -9 ------- Run | Yrd Mat Mat Min Exi Robot Analysis Total 3 | . 1 2 . . Derelict Logs Recovered 2 | . . . 2 . Drone Launches 17 | . . . 1 16 Drone Recoveries 14 | . . . 1 13 Exploration | -11 -10 -9 -9 -9 ------------- Run | Yrd Mat Mat Min Exi Turns Passed 2738 | 68 485 453 539 1193 Spaces Moved 2170 | 50 347 286 435 1052 Core 11 | 4 . 1 . 6 Treads 7 | . . . 7 . Legs . | . . . . . Wheels 1898 | 46 347 285 428 792 Hover . | . . . . . Flight 254 | . . . . 254 Fastest Speed 34 | 50 100 95 95 34 Average Speed 89 | 96 100 100 97 80 Slowest Speed 160 | 100 100 150 160 139 Overloaded Moves . | . . . . . Propulsion Burnouts . | . . . . . Robots Hopped . | . . . . . Cave-ins Triggered . | . . . . . Exploration Rate (%) 51 | 3 56 32 79 89 Regions Visited 4 Branch Regions 2 Pre-discovered Areas . | . . . . . Known Exits Taken . | . . . . . Unknown Exits Taken 4 | 1 1 1 1 . Scrap Searched 2 | . . . 2 . Spaces Dug 23 | . . . . 23 Terrain Destroyed 95 | . . 7 45 43 Melee 2 | . . . . 2 Projectile 24 | . . . . 24 AOE 68 | . . 7 45 16 Terrain Rammed . | . . . . . Walls Destroyed . | . . . . . Machines Disabled . | . . . . . Actions | -11 -10 -9 -9 -9 --------- Run | Yrd Mat Mat Min Exi Total 2702 | 62 441 386 497 1316 Wait 233 | . 60 44 6 123 Move 2166 | 49 346 285 434 1052 Hop . | . . . . . Pick Up 25 | 4 6 4 4 7 Fast Attach 29 | 7 . 4 6 12 Attach 14 | . 1 2 1 10 Detach 6 | . . . 1 5 Swap 28 | . 2 6 11 9 Drop 43 | . 2 6 8 27 Fire 123 | 2 24 35 26 36 Melee 35 | . . . . 35 Ram . | . . . . . Kick . | . . . . . Crush . | . . . . . Escape Stasis . | . . . . . Rewire . | . . . . . Trap . | . . . . . Miscellaneous . | . . . . . Route ------- -11/Scrapyard -10/Materials (discovered 2 exits: *Mat x2) -9/Materials -9/Mines (discovered 2 exits: [*Mat] / *Exi) -9/Exiles (discovered 2 exits: [*Min x2]) History --------- Turn | Location | Event 4 | -11/Scrapyard | Discovered new exit (range 15) 69 | -11/Scrapyard | Entered Materials 137 | -10/Materials | Discovered new exit (range 3) 312 | -10/Materials | Build established: Mutant 538 | -10/Materials | Discovered new exit (range 9) 548 | -10/Materials | Central database locked down 554 | -10/Materials | Entered another Materials area 554 | -9/Materials | Evolved 2 slots: Propulsion x2 927 | -9/Materials | Destroyed 8 combat bots 956 | -9/Materials | Lost 4 parts (1p2n1u) 995 | -9/Materials | Discovered new exit (range 5) 1007 | -9/Materials | Entered Mines 1117 | -9/Mines | Found a damaged Exp. Sensor Array with a note attached 1121 | -9/Mines | Found Prototype Device 1129 | -9/Mines | Identified Exp. Sensor Array 1193 | -9/Mines | Found the Drone Emporium 1198 | -9/Mines | Found Prototype Device 1198 | -9/Mines | Identified Thief Drone Bay 1255 | -9/Mines | Build established: Scavenger-Mutant 1280 | -9/Mines | Learned Materials terminal intel 1328 | -9/Mines | Deemed a non-threat by the Exiles lab entrance 1328 | -9/Mines | Discovered new exit (range 5) 1387 | -9/Mines | Discovered new exit (range 13) 1546 | -9/Mines | Entered Exiles 1569 | -9/Exiles | Met 8R-AWN 1585 | -9/Exiles | Met EX-HEX 1655 | -9/Exiles | Met EX-DEC 1672 | -9/Exiles | Visited The Gauntlet 1806 | -9/Exiles | Discovered new exit (range 14) 1868 | -9/Exiles | Met EX-BIN 2016 | -9/Exiles | Discovered new exit (range 14) 2113 | -9/Exiles | Attacked by the Exiles 2120 | -9/Exiles | Found Prototype Ballistic Gun 2120 | -9/Exiles | Identified 8R-AWN's Boregun 2157 | -9/Exiles | Found 8R-AWN's Boregun 2165 | -9/Exiles | Found Prototype Device 2165 | -9/Exiles | Identified AS-neutralizer No. 17b 2224 | -9/Exiles | Destroyed 8R-AWN 2720 | -9/Exiles | Core integrity fell below 50% 2736 | -9/Exiles | Core integrity fell below 20% 2739 | -9/Exiles | Destroyed by DAS Turret with DAS Cannon Last Messages --------------- 02707_ HV Slug penetrates Machine. 02707_ Machine disabled. 02707_ Knocked back. 02708_ Acquired 6 matter. 02709_ Thief Drone knocked back. 02711_ 8R-AWN's Boregun destroyed. 02711_ Knocked back. 02715_ Thief Drone destroyed. 02719_ Knocked back. 02721_ Flight Unit destroyed. 02721_ Imp. Ion Engine destroyed. 02723_ Knocked back. 02727_ VTOL Module destroyed. 02727_ Knocked back. 02728_ Dropped Thief Drone Bay. 02729_ Acquired 1 matter. 02731_ Dropped Gravity Neutralizer. 02731_ Knocked back. 02733_ Dropped Adv. Myomer Leg. 02734_ Dropped Rnf. Fission Core. Map ----- +----------------------------------------------------+ | ##" ""#??????????#"" """#???????## | | #"" #????????????#"" #????????# | | ## #????????????#"" #????????#" | | ##### ##???????????#"" "#????????#" | | ????### "#???????????# ""#????????#" | | ######" ###?????????#"" ""????????##" | | !!""""" ##??????????# #????????##"" | | "###"" ######???### ###?######"" | | "#?##" """#####X# #"###""""""" | | ##??#" """""" " "" | | !""""""###???#"# " """ " | | ########?????#### " | | ????????????????### | | ??????????????????### | | ????????????????????## | | ?????????????????????## | | ??????????????????????##" | | ???????????????????????#""" """""" | | ??????????????????????##" % #"####"" | | ??????????????????????#" ""### ##### | | ?????????????????????##" " "#### ##?? | | ?????????????????????#""" ""!"" ### | | ?????????????????????#""" ""### # | | ?????????????????????#"" %% % #####"#" "# | | ?????????????????????#"""%t% ;# #"#" | | ?????????????????????#"" @ %% " | | ?????????????????????##" !%%% | | ??????????????????????#"=" | | ??????????????????????##*%!% % | | ???????????????????????#" % " | | ???????????????????????#"""" ""## # | | ???????????????????????#"" ""#### # | | ???????????????????????#" """##??# # | | ???????????????????????#""" """#??## # | | ???????????????????????## ""##??#! | | ????????????????????????#"" """##???#" | | ????????????????????????##""" ##????#" | | ?????????????????????????##"""" ##?????# !"" | | ??????????????????????????### #??????##### | | ????????????????????????????##### ##??????????? | | ????????????????????????????????## #???????????? | | ?????????????????????????????????# #???????????? | | ?????????????????????????????????# #???????????? | | ?????????????????????????????????# #???????????? | | ??##???????????????????####??????# #???????????? | | #""""?????????"""""???#""""""????# #???????????? | | ?"" ???????"""""""???#"""""""#??# #???????????? | | ?" ??????"""""" "#??#" """"#??# #???????????? | | ?"" ??#""#""" """???#"" """#??# #???????????? | | ?"" ??#""#"" ""????"" ""???# #???????????? | +----------------------------------------------------+ Best States ------------- Heat Dissipation 38 Energy Generation 19 Energy Capacity 310 Matter Stores 358 Matter Capacity 500 Sight Range 16 Terrain Scan Density 10 Additional Mass Support 12 Armor Coverage 150 Evasion (%) 63 Recoil Reduction 2 Item Schematics ----------------- Propulsion Shielding | -10/Materials | Hacked Cargo Storage Unit | -10/Materials | Hacked Signal Interpreter | -9/Materials | Scanalyzed Lrg. Matter Pod | -9/Materials | Scanalyzed Utility Shielding | -9/Materials | Hacked Robot Schematics ------------------ None Fabricated ------------ Nothing Alien Tech Used ----------------- None Achievements -------------- None Challenges ------------ None Game ------ Seed LightActuatorProcessor Manual? 0 Play Time 00:50:05 Cumulative 46.1 hours Start 2024.04.04 @ 23:27:44 End 2024.04.05 @ 00:29:17 Sessions 1 Manual Loads 0 Difficulty Rogue Special Mode None Game No. 57 Rogue 57 Adventurer 0 Explorer 0 Win Type - Total 0 Types 0/0/0/0/0/0/0/0/0 Lore% 36 Gallery% 51 Achievement% 40 Wizard Run 0 Options --------- Layout 1 ASCII 0 Keyboard 0 Movement Numpad Keybinds 0 Fullscreen 1 Font 24/Smallcaps Map View 50x35 Zoom Use 0% Tactical HUD 1 Map Filters NONE Filters NONE Steam 1 RUN: 3bff3bef-e06c-4623-8bae-d1f49c0215ad